fUSD/lending_fUSD_20240412
["ID","MTS","AMOUNT","RATE_DAILY","PERIOD"]
[322255295,1712915452128,-3469.98,0.00033383,7]
[322255296,1712915452138,-581.26,0.00033383,7]
[322255297,1712915452147,-635.14,0.00033383,7]
[322255298,1712915452157,-858.19,0.00033383,7]
[322255299,1712915452166,-1691.0,0.00033383,7]
[322255300,1712915452176,-500.0,0.00033383,7]
[322255301,1712915452186,-887.98,0.00033383,7]
[322255302,1712915452196,-1416.67,0.00033383,7]
[322255303,1712915452206,-999.87206828,0.00033384,2]
[322255304,1712915452215,-150.0,0.00033386,2]
[322255305,1712915452225,-150.0,0.00033389,2]
[322255306,1712915452234,-150.0,0.00033391,2]
[322255307,1712915452243,-150.0,0.00033392,2]
[322255308,1712915452253,-150.0,0.00033397,2]
[322255309,1712915452274,-5007.2161902,0.000334,4]
[322255310,1712915452284,-150.0,0.00033418,2]
[322255311,1712915452293,-150.0,0.0003343,2]
[322255312,1712915452303,-150.0,0.00033445,2]
[322255313,1712915452317,-150.0,0.00033446,2]
[322255314,1712915452328,-150.0,0.00033447,2]
[322255315,1712915452338,-171.92569789,0.00033474,7]
[322255316,1712915452348,-150.0,0.00033484,2]
[322255317,1712915452358,-150.0,0.00033488,2]
[322255318,1712915452368,-163.21773918,0.00033491,7]
[322255319,1712915452378,-275.32852871,0.00033495,2]
[322255320,1712915452388,-6169.628102,0.000335,14]
[322255321,1712915452399,-150.0,0.000335,6]
[322255322,1712915452409,-4860.84,0.000335,2]
[322255323,1712915452419,-4860.84,0.000335,2]
[322255324,1712915452429,-4860.84,0.000335,2]
[322255325,1712915452440,-4860.84,0.000335,2]
[322255326,1712915452450,-4860.84,0.000335,2]
[322255327,1712915452460,-4860.84,0.000335,2]
[322255328,1712915452470,-4860.84,0.000335,2]
[322255329,1712915452480,-4860.84,0.000335,2]
[322255330,1712915452490,-4860.84,0.000335,2]
[322255331,1712915452499,-4860.84,0.000335,2]
[322255332,1712915452509,-4860.84,0.000335,2]
[322255333,1712915452519,-4860.84,0.000335,2]
[322255334,1712915452528,-4860.84,0.000335,2]
[322255335,1712915452538,-4860.84,0.000335,2]
[322255336,1712915452548,-4860.84,0.000335,2]
[322255337,1712915452557,-4860.84,0.000335,2]
[322255338,1712915452567,-4860.84,0.000335,2]
[322255339,1712915452577,-4860.84,0.000335,2]
[322255340,1712915452586,-4860.84,0.000335,2]
[322255341,1712915452596,-4860.84,0.000335,2]
[322255342,1712915452606,-1057.83806467,0.00033504,5]
[322255343,1712915452616,-1121.11515678,0.00033504,5]
[322255344,1712915452625,-1011.65666719,0.00033504,5]
[322255345,1712915452635,-198.66672047,0.00033516,7]
[322255346,1712915452644,-150.0,0.00033526,2]
[322255347,1712915452654,-150.0,0.00033531,2]
[322255348,1712915452663,-150.0,0.00033536,2]
[322255349,1712915452674,-150.0,0.00033539,2]
[322255350,1712915452683,-500.0,0.00033555,2]
[322255351,1712915452694,-500.0,0.00033555,2]
[322255352,1712915452704,-500.0,0.00033555,2]
[322255353,1712915452714,-500.0,0.00033555,2]
[322255354,1712915452723,-500.0,0.00033555,2]
[322255355,1712915452733,-500.0,0.00033555,2]
[322255356,1712915452743,-500.0,0.00033555,2]
[322255357,1712915452752,-500.0,0.00033555,2]
[322255358,1712915452762,-500.0,0.00033555,2]
[322255359,1712915452772,-500.0,0.00033555,2]
[322255360,1712915452781,-500.0,0.00033555,2]
[322255361,1712915452791,-500.0,0.00033555,2]
[322255362,1712915452801,-500.0,0.00033555,2]
[322255363,1712915452810,-500.0,0.00033555,2]
[322255364,1712915452819,-500.0,0.00033555,2]
[322255365,1712915452829,-500.0,0.00033555,2]
[322255366,1712915452839,-500.0,0.00033555,2]
[322255367,1712915452848,-500.0,0.00033555,2]
[322255368,1712915452858,-500.0,0.00033555,2]
[322255369,1712915452868,-500.0,0.00033555,2]
[322255370,1712915452877,-500.0,0.00033555,2]
[322255371,1712915452887,-500.0,0.00033555,2]
[322255372,1712915452896,-500.0,0.00033555,2]
[322255373,1712915452906,-500.0,0.00033555,2]
[322255374,1712915452915,-500.0,0.00033555,2]
[322255375,1712915452924,-500.0,0.00033555,2]
[322255376,1712915452934,-500.0,0.00033555,2]
[322255377,1712915452945,-500.0,0.00033555,2]
[322255378,1712915452954,-500.0,0.00033555,2]
[322255379,1712915452963,-500.0,0.00033555,2]
[322255380,1712915452973,-500.0,0.00033555,2]
[322255381,1712915452982,-500.0,0.00033555,2]
[322255382,1712915452991,-500.0,0.00033555,2]
[322255383,1712915453001,-500.0,0.00033555,2]
[322255384,1712915453010,-500.0,0.00033555,2]
[322255385,1712915453019,-500.0,0.00033555,2]
[322255386,1712915453029,-500.0,0.00033555,2]
[322255387,1712915453039,-500.0,0.00033555,2]
[322255388,1712915453048,-500.0,0.00033555,2]
[322255389,1712915453057,-500.0,0.00033555,2]
[322255390,1712915453067,-500.0,0.00033555,2]
[322255391,1712915453077,-500.0,0.00033555,2]
[322255392,1712915453087,-500.0,0.00033555,2]
[322255393,1712915453096,-500.0,0.00033555,2]
[322255394,1712915453105,-500.0,0.00033555,2]
[322255395,1712915453115,-500.0,0.00033555,2]
[322255396,1712915453124,-500.0,0.00033555,2]
[322255397,1712915453133,-500.0,0.00033555,2]
[322255398,1712915453143,-500.0,0.00033555,2]
[322255399,1712915453152,-500.0,0.00033555,2]
[322255400,1712915453161,-500.0,0.00033555,2]
[322255401,1712915453170,-500.0,0.00033555,2]
[322255402,1712915453179,-500.0,0.00033555,2]
[322255403,1712915453189,-500.0,0.00033555,2]
[322255404,1712915453199,-500.0,0.00033555,2]
[322255405,1712915453208,-500.0,0.00033555,2]
[322255406,1712915453217,-500.0,0.00033555,2]
[322255407,1712915453227,-500.0,0.00033555,2]
[322255408,1712915453237,-500.0,0.00033555,2]
[322255409,1712915453246,-500.0,0.00033555,2]
[322255410,1712915453255,-500.0,0.00033555,2]
[322255411,1712915453264,-500.0,0.00033555,2]
[322255412,1712915453274,-500.0,0.00033555,2]
[322255413,1712915453283,-500.0,0.00033555,2]
[322255414,1712915453292,-500.0,0.00033555,2]
[322255415,1712915453301,-500.0,0.00033555,2]
[322255416,1712915453313,-500.0,0.00033555,2]
[322255417,1712915453323,-500.0,0.00033555,2]
[322255418,1712915453333,-500.0,0.00033555,2]
[322255419,1712915453342,-500.0,0.00033555,2]
[322255420,1712915453352,-500.0,0.00033555,2]
[322255421,1712915453361,-500.0,0.00033555,2]
[322255422,1712915453371,-500.0,0.00033555,2]
[322255423,1712915453380,-500.0,0.00033555,2]
[322255424,1712915453390,-500.0,0.00033555,2]
[322255425,1712915453399,-500.0,0.00033555,2]
[322255426,1712915453409,-500.0,0.00033555,2]
[322255427,1712915453418,-500.0,0.00033555,2]
[322255428,1712915453428,-500.0,0.00033555,2]
[322255429,1712915453437,-500.0,0.00033555,2]
[322255430,1712915453448,-500.0,0.00033555,2]
[322255431,1712915453458,-500.0,0.00033555,2]
[322255432,1712915453467,-478.29,0.00033555,2]
[322255433,1712915453477,-500.0,0.00033555,2]
[322255434,1712915453486,-222.8,0.00033555,2]
[322255435,1712915453496,-500.0,0.00033555,2]
[322255436,1712915453505,-500.0,0.00033555,2]
[322255437,1712915453515,-500.0,0.00033555,2]
[322255438,1712915453525,-500.0,0.00033555,2]
[322255439,1712915453534,-500.0,0.00033555,2]
[322255440,1712915453544,-150.0,0.00033581,2]
[322255441,1712915453554,-981.0171061,0.0003359,6]
[322255442,1712915453563,-9991.43798999,0.000336,30]
[322255443,1712915453573,-415.74156277,0.00033607,2]
[322255444,1712915453583,-574.9,0.00033625,2]
[322255445,1712915453592,-150.0,0.00033628,2]
[322255446,1712915453602,-505.5348629,0.00033632,2]
[322255447,1712915453611,-150.0,0.0003364,2]
[322255448,1712915453621,-150.0,0.00033653,2]
[322255449,1712915453630,-718.07,0.00033657,7]
[322255450,1712915453640,-530.24,0.00033657,7]
[322255451,1712915453650,-732.3,0.00033657,7]
[322255452,1712915453659,-677.35,0.00033657,7]
[322255453,1712915453669,-611.34,0.00033657,7]
[322255454,1712915453679,-2113.65,0.00033657,7]
[322255455,1712915453688,-564.32,0.00033657,7]
[322255456,1712915453698,-500.0,0.00033657,7]
[322255457,1712915453707,-3469.98,0.00033657,7]
[322255458,1712915453717,-581.26,0.00033657,7]
[322255459,1712915453726,-635.14,0.00033657,7]
[322255460,1712915453736,-858.19,0.00033657,7]
[322255461,1712915453745,-1691.0,0.00033657,7]
[322255462,1712915453754,-500.0,0.00033657,7]
[322255463,1712915453764,-887.98,0.00033657,7]
[322255464,1712915453773,-1416.67,0.00033657,7]
[322255465,1712915453782,-153.3423266,0.00033661,7]
[322255466,1712915453791,-152.32027782,0.00033678,7]
[322255467,1712915453801,-163.21773918,0.00033679,7]
[322255468,1712915453811,-156.33363119,0.00033684,7]
[322255469,1712915453821,-150.0,0.00033685,2]
[322255470,1712915453830,-150.0,0.00033688,2]
[322255471,1712915453840,-150.0,0.00033692,2]
[322255472,1712915453849,-150.0,0.00033695,2]
[322255473,1712915453859,-536.69,0.000337,2]
[322255474,1712915453869,-150.0,0.00033701,2]
[322255475,1712915453878,-150.0,0.00033717,2]
[322255476,1712915453888,-167.32115961,0.00033724,7]
[322255477,1712915453897,-1000.0,0.00033726,2]
[322255478,1712915453907,-158.14981821,0.00033743,7]
[322255479,1712915453917,-150.0,0.00033794,2]
[322255480,1712915453926,-150.0,0.000338,2]
[322255481,1712915453935,-150.0,0.0003381,2]
[322255482,1712915453946,-150.0,0.00033812,2]
[322255483,1712915453955,-150.0,0.00033818,2]
[322255484,1712915453965,-150.0,0.00033819,2]
[322255485,1712915453974,-1500.0,0.00033821,2]
[322255486,1712915453983,-1500.0,0.00033836,2]
[322255487,1712915453993,-150.0,0.00033838,2]
[322255488,1712915454002,-150.0,0.00033846,2]
[322255489,1712915454011,-152.32027782,0.00033848,7]
[322255490,1712915454020,-1500.0,0.00033872,2]
[322255491,1712915454030,-1448503.880922,0.0003388,2]
[322255492,1712915454090,-1500.0,0.00033884,2]
[322255493,1712915454100,-415.74156277,0.00033901,2]
[322255494,1712915454110,-150.0,0.00033918,2]
[322255495,1712915454119,-150.0,0.00033925,2]
[322255496,1712915454129,-150.0,0.00033927,2]
[322255497,1712915454138,-150.0,0.0003393,2]
[322255498,1712915454147,-150.0,0.0003393,2]
[322255499,1712915454157,-718.07,0.00033931,7]
[322255500,1712915454166,-530.24,0.00033931,7]
[322255501,1712915454176,-732.3,0.00033931,7]
[322255502,1712915454186,-677.35,0.00033931,7]
[322255503,1712915454196,-611.34,0.00033931,7]
[322255504,1712915454206,-2113.65,0.00033931,7]
[322255505,1712915454215,-564.32,0.00033931,7]
[322255506,1712915454225,-365.65029294,0.00033931,7]
[322255507,1712915454234,-3469.98,0.00033931,7]
[322255508,1712915454243,-581.26,0.00033931,7]
[322255509,1712915454253,-635.14,0.00033931,7]
[322255510,1712915454263,-858.19,0.00033931,7]
[322255511,1712915454273,-1691.0,0.00033931,7]
[322255512,1712915454282,-500.0,0.00033931,7]
[322255513,1712915454292,-887.98,0.00033931,7]
[322255514,1712915454301,-1416.67,0.00033931,7]
[322255515,1712915454314,-150.0,0.00033934,2]
[322255516,1712915454325,-300.0,0.00033936,2]
[322255517,1712915454337,-150.0,0.00033958,2]
[322255518,1712915454347,-150.0,0.00033958,2]
[322255519,1712915454358,-200.814477,0.00033973,14]
[322255520,1712915454367,-3297.0,0.00033973,30]
[322255521,1712915454377,-3584.0,0.00033973,30]
[322255522,1712915454387,-150.0,0.00033975,2]
[322255523,1712915454396,-150.0,0.00033977,2]
[322255524,1712915454405,-301.13134409,0.00033977,2]
[322255525,1712915454414,-150.0,0.00033983,2]
[322255526,1712915454423,-1027.73773914,0.00033988,2]
[322255527,1712915454433,-2913.26825246,0.00033988,2]
[322255528,1712915454445,-150.0,0.00033995,2]
[322255529,1712915454454,-100000.0,0.00034,24]
[322255530,1712915454463,-153.48923461,0.00034,10]
[322255531,1712915454472,-3500.0,0.00034,7]
[322255532,1712915454481,-1000.0,0.00034,2]
[322255533,1712915454490,-10000.0,0.00034,7]
[322255534,1712915454499,-12772.0,0.00034,30]
[322255535,1712915454508,-157.89069023,0.00034,120]
[322255536,1712915454517,-2018.29,0.00034,30]
[322255537,1712915454526,-2000.0,0.00034,30]
[322255538,1712915454535,-20127.0,0.00034,20]
[322255539,1712915454545,-1045.31194933,0.00034005,2]
[322255540,1712915454554,-150.0,0.0003402,2]
[322255541,1712915454564,-150.0,0.00034021,2]
[322255542,1712915454573,-150.0,0.00034022,2]
[322255543,1712915454582,-150.0,0.00034036,2]
[322255544,1712915454591,-315.95661728,0.00034046,2]
[322255545,1712915454600,-183.73160421,0.00034056,2]
[322255546,1712915454610,-150.0,0.00034078,2]
[322255547,1712915454619,-1500.0,0.00034078,2]
[322255548,1712915454628,-1859.152,0.0003408,30]
[322255549,1712915454637,-11442.0,0.00034081,30]
[322255550,1712915454647,-916.0,0.00034082,30]
[322255551,1712915454656,-30000.0,0.0003409,30]
[322255552,1712915454666,-150.0,0.000341,7]
[322255553,1712915454674,-153.3423266,0.00034103,7]
[322255554,1712915454684,-156.33363119,0.00034107,7]
[322255555,1712915454694,-300.0,0.00034111,2]
[322255556,1712915454704,-150.0,0.00034116,2]
[322255557,1712915454714,-516.0,0.00034123,30]
[322255558,1712915454723,-1500.0,0.00034131,2]
[322255559,1712915454732,-150.0,0.00034145,2]
[322255560,1712915454741,-1500.0,0.00034161,2]
[322255561,1712915454750,-150.0,0.00034172,2]
[322255562,1712915454760,-500.0,0.00034178,2]
[322255563,1712915454769,-592.45394696,0.00034178,2]
[322255564,1712915454778,-430.0,0.00034188,7]
[322255565,1712915454787,-221.81122981,0.00034188,2]
[322255566,1712915454798,-150.0,0.00034188,2]
[322255567,1712915454807,-176.72482462,0.00034189,7]
[322255568,1712915454817,-415.74156277,0.00034196,2]
[322255569,1712915454826,-718.07,0.00034205,7]
[322255570,1712915454835,-530.24,0.00034205,7]
[322255571,1712915454845,-732.3,0.00034205,7]
[322255572,1712915454855,-677.35,0.00034205,7]
[322255573,1712915454864,-611.34,0.00034205,7]
[322255574,1712915454873,-2113.65,0.00034205,7]
[322255575,1712915454882,-564.32,0.00034205,7]
[322255576,1712915454892,-3469.98,0.00034205,7]
[322255577,1712915454902,-581.26,0.00034205,7]
[322255578,1712915454912,-635.14,0.00034205,7]
[322255579,1712915454921,-858.19,0.00034205,7]
[322255580,1712915454932,-1691.0,0.00034205,7]
[322255581,1712915454941,-500.0,0.00034205,7]
[322255582,1712915454951,-887.98,0.00034205,7]
[322255583,1712915454960,-1416.67,0.00034205,7]
[322255584,1712915454969,-536.0,0.00034219,2]
[322255585,1712915454979,-886.0,0.00034219,2]
[322255586,1712915454988,-150.0,0.00034221,2]
[322255587,1712915454997,-151.26482744,0.00034222,2]
[322255588,1712915455006,-151.12975173,0.00034226,2]
[322255589,1712915455016,-150.0,0.00034228,2]
[322255590,1712915455025,-150.0,0.00034236,2]
[322255591,1712915455034,-154.82296994,0.00034239,7]
[322255592,1712915455043,-150.0,0.00034242,2]
[322255593,1712915455052,-431.81,0.00034247,2]
[322255594,1712915455061,-1500.0,0.00034247,2]
[322255595,1712915455070,-150.0,0.00034272,2]
[322255596,1712915455080,-150.0,0.00034275,2]
[322255597,1712915455089,-1093.79,0.00034278,2]
[322255598,1712915455099,-150.0,0.00034285,2]
[322255599,1712915455108,-1000.0,0.000343,2]
[322255600,1712915455117,-224.0,0.000343,2]
[322255601,1712915455126,-505.2,0.000343,2]
[322255602,1712915455136,-354.0,0.000343,2]
[322255603,1712915455145,-150.0,0.00034311,2]
[322255604,1712915455154,-1500.0,0.00034314,2]
[322255605,1712915455163,-156.3336312,0.00034314,7]
[322255606,1712915455172,-150.0,0.00034315,2]
[322255607,1712915455181,-198.66672047,0.0003434,7]
[322255608,1712915455191,-150.0,0.00034354,2]
[322255609,1712915455203,-150.0,0.00034384,2]
[322255610,1712915455212,-150.0,0.00034387,2]
[322255611,1712915455221,-150.0,0.00034389,2]
[322255612,1712915455230,-150.0,0.00034398,2]
[322255613,1712915455239,-150.0,0.00034417,2]
[322255614,1712915455249,-300.0,0.0003442,2]
[322255615,1712915455258,-150.0,0.00034431,2]
[322255616,1712915455267,-4710.80933974,0.00034436,6]
[322255617,1712915455276,-150.0,0.0003444,2]
[322255618,1712915455286,-150.0,0.00034452,2]
[322255619,1712915455295,-150.0,0.00034465,2]
[322255620,1712915455304,-163.61608941,0.00034473,2]
[322255621,1712915455318,-209.86645799,0.00034476,2]
[322255622,1712915455327,-150.0,0.00034479,2]
[322255623,1712915455336,-718.07,0.00034479,7]
[322255624,1712915455346,-530.24,0.00034479,7]
[322255625,1712915455355,-732.3,0.00034479,7]
[322255626,1712915455364,-677.35,0.00034479,7]
[322255627,1712915455374,-611.34,0.00034479,7]
[322255628,1712915455383,-2113.65,0.00034479,7]
[322255629,1712915455394,-564.32,0.00034479,7]
[322255630,1712915455404,-3469.98,0.00034479,7]
[322255631,1712915455414,-581.26,0.00034479,7]
[322255632,1712915455423,-635.14,0.00034479,7]
[322255633,1712915455433,-1691.0,0.00034479,7]
[322255634,1712915455444,-858.19,0.00034479,7]
[322255635,1712915455454,-500.0,0.00034479,7]
[322255636,1712915455463,-887.98,0.00034479,7]
[322255637,1712915455472,-1416.67,0.00034479,7]
[322255638,1712915455481,-415.74156277,0.0003449,2]
[322255639,1712915455491,-152.81,0.0003449,2]
[322255640,1712915455500,-150.0,0.00034491,2]
[322255641,1712915455510,-323.89310803,0.00034492,2]
[322255642,1712915455519,-175.29854916,0.00034492,2]
[322255643,1712915455529,-198.66672047,0.00034495,7]
[322255644,1712915455538,-151.66253266,0.00034496,7]
[322255645,1712915455547,-151.58120898,0.00034498,2]
[322255646,1712915455557,-150.0,0.000345,8]
[322255647,1712915455566,-200.0,0.000345,8]
[322255648,1712915455575,-301.261693,0.000345,3]
[322255649,1712915455584,-427.918921,0.000345,15]
[322255650,1712915455594,-482.90205505,0.00034504,2]
[322255651,1712915455603,-150.0,0.00034506,2]
[322255652,1712915455612,-150.0,0.00034524,2]
[322255653,1712915455621,-150.0,0.00034528,2]
[322255654,1712915455630,-173.81137151,0.00034535,2]
[322255655,1712915455639,-150.0,0.00034544,2]
[322255656,1712915455648,-150.0,0.00034548,10]
[322255657,1712915455657,-150.0,0.00034548,2]
[322255658,1712915455666,-211.0,0.0003455,2]
[322255659,1712915455675,-211.0,0.0003455,2]
[322255660,1712915455685,-170.0,0.0003458,21]
[322255661,1712915455696,-334.42836385,0.00034582,2]
[322255662,1712915455706,-261903.82365812,0.00034592,7]
[322255663,1712915455717,-13005.93423313,0.00034592,5]
[322255664,1712915455726,-163704.94313264,0.00034592,2]
[322255665,1712915455736,-117274.63315612,0.00034592,2]
[322255666,1712915455745,-12124.5056936,0.00034592,2]
[322255667,1712915455754,-10400.26656192,0.00034592,2]
[322255668,1712915455763,-139498.37745606,0.00034592,2]
[322255669,1712915455772,-133505.59490585,0.00034592,2]
[322255670,1712915455782,-22162.88552579,0.00034592,2]
[322255671,1712915455790,-14707.57442193,0.00034592,2]
[322255672,1712915455799,-11653.84540249,0.00034592,2]
[322255673,1712915455810,-12480.9953732,0.00034592,2]
[322255674,1712915455822,-16290.16372819,0.00034592,2]
[322255675,1712915455831,-10417.35664167,0.00034592,2]
[322255676,1712915455841,-164882.57147829,0.00034592,2]
[322255677,1712915455850,-14545.1797377,0.00034592,2]
[322255678,1712915455860,-645.68310839,0.00034592,10]
[322255679,1712915455869,-4999.999999,0.00034592,2]
[322255680,1712915455878,-3252.61572497,0.00034592,7]
[322255681,1712915455887,-29259.76212622,0.00034592,15]
[322255682,1712915455896,-9858.07491896,0.00034592,15]
[322255683,1712915455906,-250.0,0.00034592,13]
[322255684,1712915455915,-3545.72932932,0.00034592,15]
[322255685,1712915455925,-193.04984147,0.00034592,15]
[322255686,1712915455935,-15484.66314866,0.00034592,6]
[322255687,1712915455944,-2218.53,0.00034592,9]
[322255688,1712915455954,-154.02523859,0.00034599,7]
[322255689,1712915455964,-4107.95176085,0.000346,5]
[322255690,1712915455973,-101661.5542541,0.000346,3]
[322255691,1712915455984,-640.59,0.000346,2]
[322255692,1712915455993,-1151.75,0.000346,2]
[322255693,1712915456004,-154.564372,0.00034638,7]
[322255694,1712915456015,-167.32115961,0.0003467,7]
[322255695,1712915456026,-198.66672047,0.00034675,7]
[322255696,1712915456035,-1683.27363,0.0003468,2]
[322255697,1712915456045,-176.72482462,0.00034689,7]
[322255698,1712915456054,-153.3423266,0.00034698,7]
[322255699,1712915456064,-718.07,0.00034753,7]
[322255700,1712915456074,-530.24,0.00034753,7]
[322255701,1712915456083,-732.3,0.00034753,7]
[322255702,1712915456092,-677.35,0.00034753,7]
[322255703,1712915456102,-611.34,0.00034753,7]
[322255704,1712915456111,-2113.65,0.00034753,7]
[322255705,1712915456120,-564.32,0.00034753,7]
[322255706,1712915456130,-3469.98,0.00034753,7]
[322255707,1712915456140,-581.26,0.00034753,7]
[322255708,1712915456149,-635.14,0.00034753,7]
[322255709,1712915456159,-1691.0,0.00034753,7]
[322255710,1712915456168,-858.19,0.00034753,7]
[322255711,1712915456178,-410.98168172,0.00034753,7]
[322255712,1712915456187,-887.98,0.00034753,7]
[322255713,1712915456197,-1416.67,0.00034753,7]
[322255714,1712915456207,-154.564372,0.00034794,7]
[322255715,1712915456217,-200.814477,0.00034795,14]
[322255716,1712915456226,-15274.63761442,0.000348,14]
[322255717,1712915456235,-10000.0,0.000348,10]
[322255718,1712915456245,-198.66672047,0.00034885,7]
[322255719,1712915456254,-154.82296994,0.00034899,7]
[322255720,1712915456264,-167.32115961,0.00034909,7]
[322255721,1712915456273,-163.21773918,0.00034936,7]
[322255722,1712915456283,-198.66672047,0.00034994,7]
[322255723,1712915456293,-100000.0,0.00035,25]
[322255724,1712915456303,-2575.96514984,0.00035,7]
[322255725,1712915456315,-547.16,0.00035,4]
[322255726,1712915456324,-10016.49896617,0.00035,7]
[322255727,1712915456334,-158.00432743,0.00035,4]
[322255728,1712915456343,-215.0,0.00035,2]
[322255729,1712915456353,-150.0,0.00035,120]
[322255730,1712915456362,-718.07,0.00035027,7]
[322255731,1712915456372,-530.24,0.00035027,7]
[322255732,1712915456382,-732.3,0.00035027,7]
[322255733,1712915456393,-677.35,0.00035027,7]
[322255734,1712915456403,-611.34,0.00035027,7]
[322255735,1712915456413,-2113.65,0.00035027,7]
[322255736,1712915456422,-564.32,0.00035027,7]
[322255737,1712915456432,-581.26,0.00035027,7]
[322255738,1712915456442,-3469.98,0.00035027,7]
[322255739,1712915456451,-635.14,0.00035027,7]
[322255740,1712915456461,-858.19,0.00035027,7]
[322255741,1712915456471,-1691.0,0.00035027,7]
[322255742,1712915456481,-887.98,0.00035027,7]
[322255743,1712915456491,-1416.67,0.00035027,7]
[322255744,1712915456501,-176.72482462,0.0003519,7]
[322255745,1712915456511,-176.72482462,0.00035214,7]
[322255746,1712915456521,-153.76,0.00035225,2]
[322255747,1712915456531,-151.66253266,0.00035232,7]
[322255748,1712915456541,-1040.07,0.00035288,15]
[322255749,1712915456550,-153.3423266,0.00035288,7]
[322255750,1712915456560,-640.59,0.000353,2]
[322255751,1712915456570,-1151.75,0.000353,2]
[322255752,1712915456579,-718.08703584,0.00035301,7]
[322255753,1712915456589,-530.45010977,0.00035301,7]
[322255754,1712915456599,-732.4578116,0.00035301,7]
[322255755,1712915456609,-677.54015805,0.00035301,7]
[322255756,1712915456618,-611.36382488,0.00035301,7]
[322255757,1712915456628,-2113.72842184,0.00035301,7]
[322255758,1712915456637,-564.32947653,0.00035301,7]
[322255759,1712915456647,-581.41339,0.00035301,7]
[322255760,1712915456656,-3470.0666401,0.00035301,7]
[322255761,1712915456666,-635.22987199,0.00035301,7]
[322255762,1712915456675,-858.30858608,0.00035301,7]
[322255763,1712915456685,-1691.1065,0.00035301,7]
[322255764,1712915456696,-888.18649225,0.00035301,7]
[322255765,1712915456705,-1416.90227527,0.00035301,7]
[322255766,1712915456714,-157.43248173,0.00035306,7]
[322255767,1712915456723,-205.437378,0.00035314,2]
[322255768,1712915456732,-249.843024,0.00035314,2]
[322255769,1712915456742,-292.440927,0.00035314,2]
[322255770,1712915456751,-248.567485,0.00035314,2]
[322255771,1712915456761,-151.66253266,0.00035337,7]
[322255772,1712915456770,-151.66253266,0.00035377,7]
[322255773,1712915456780,-176.72482462,0.0003544,7]
[322255774,1712915456790,-157.43248173,0.00035451,7]
[322255775,1712915456799,-289.6,0.000355,9]
[322255776,1712915456809,-154.02523859,0.00035528,7]
[322255777,1712915456818,-150.0,0.00035535,2]
[322255778,1712915456828,-176.72482462,0.00035584,7]
[322255779,1712915456838,-536.0,0.00035589,2]
[322255780,1712915456847,-886.0,0.00035589,2]
[322255781,1712915456857,-1541.83524312,0.000356,2]
[322255782,1712915456866,-198.66672047,0.00035605,7]
[322255783,1712915456876,-200.814477,0.00035616,14]
[322255784,1712915456885,-167.32115961,0.00035636,7]
[322255785,1712915456895,-154.02523859,0.0003567,7]
[322255786,1712915456904,-167.32115961,0.00035744,7]
[322255787,1712915456913,-249.843024,0.00035756,2]
[322255788,1712915456923,-153.88972213,0.00035762,7]
[322255789,1712915456932,-153.3423266,0.00035811,7]
[322255790,1712915456942,-153.3423266,0.00035885,7]
[322255791,1712915456951,-574.9,0.00035889,2]
[322255792,1712915456961,-154.82296994,0.00035905,7]
[322255793,1712915456970,-153.3423266,0.0003595,7]
[322255794,1712915456979,-100000.0,0.00036,26]